bitfinex/quotes_ETHUSD_20250507
["timestamp","ask_amount","ask_price","bid_price","bid_amount"]
[1746599497687,0.51059783,1830.3,1830.0,5.46448087]
[1746599498284,0.51059783,1830.2,1830.0,5.46448087]
[1746599498492,0.51059783,1830.2,1829.9,19.62700979]
[1746599498675,5.46375078,1830.3,1829.9,19.62700979]
[1746599498990,5.46375078,1830.3,1830.0,5.46444727]
[1746599499176,5.46345571,1830.4,1830.0,5.46444727]
[1746599499484,10.9269965,1830.4,1830.0,5.46444727]
[1746599499979,0.51115475,1830.3,1830.0,5.46444727]
[1746599500484,0.51115475,1830.2,1830.0,5.46444727]
[1746599501179,5.46345571,1830.4,1830.0,5.46444727]
[1746599501598,5.46345571,1830.4,1830.0,10.92872898]
[1746599501888,0.51121565,1830.3,1830.1,7.33431942]
[1746599502259,6.242863,1830.5,1830.1,7.33431942]
[1746599502460,6.242863,1830.5,1830.1,6.24144652]
[1746599503087,0.51123381,1830.4,1830.1,6.24144652]
[1746599503591,0.51123381,1830.3,1830.1,6.24144652]
[1746599504191,6.242863,1830.5,1830.1,6.24144652]
[1746599504487,3.0,1830.5,1830.2,5.51850957]
[1746599504795,0.51127023,1830.4,1830.2,5.46387476]
[1746599505161,3.0,1830.5,1830.2,5.46387476]
[1746599506261,0.51141924,1830.4,1830.2,5.46387476]
[1746599506458,0.51141924,1830.4,1830.3,0.05463224]
[1746599506797,0.51141924,1830.4,1830.3,6.34551529]
[1746599506981,5.46225544,1830.8,1830.4,5.46313421]
[1746599507596,0.51147585,1830.7,1830.4,5.46313421]
[1746599508091,0.51147585,1830.7,1830.4,10.98087397]
[1746599508293,0.51147585,1830.6,1830.5,5.46298825]
[1746599508496,0.51147585,1830.6,1830.5,6.23568825]
[1746599508697,0.51147585,1830.6,1830.5,0.7727]
[1746599508988,0.51147585,1830.6,1830.5,6.23568825]
[1746599509205,0.51147585,1830.6,1830.5,7.52364825]
[1746599509580,0.51147585,1830.6,1830.5,2.06066]
[1746599509765,0.51147585,1830.6,1830.5,0.7727]
[1746599513882,0.51147585,1830.6,1830.5,6.23568825]
[1746599515083,0.51147585,1830.6,1830.5,0.7727]
[1746599518533,0.51147585,1830.6,1830.5,6.23568825]
[1746599518975,8.46191607,1830.9,1830.5,11.69848967]
[1746599519518,0.51101944,1830.8,1830.5,11.69826964]
[1746599519720,0.51101944,1830.8,1830.5,7.40529518]
[1746599520614,0.51101944,1830.8,1830.6,5.46265502]
[1746599520980,0.51101944,1830.8,1830.5,7.40536775]
[1746599521843,0.51101944,1830.7,1830.5,7.40536775]
[1746599522328,8.46191607,1830.9,1830.5,7.40536775]
[1746599522695,8.46191607,1830.9,1830.5,7.40533021]
[1746599523024,0.51092929,1830.8,1830.5,7.40533021]
[1746599523194,0.51092929,1830.7,1830.5,7.40533021]
[1746599523392,0.51092929,1830.7,1830.6,0.74053302]
[1746599523827,0.51092929,1830.8,1830.6,0.74053302]
[1746599524010,0.51092929,1830.8,1830.6,6.20319274]
[1746599524338,0.51092929,1830.7,1830.6,6.20319274]
[1746599524723,8.46191607,1830.9,1830.6,6.20319274]
[1746599524917,5.493,1831.0,1830.7,6.08263086]
[1746599525235,5.46135006,1831.1,1830.8,5.46206827]
[1746599525236,0.51086519,1830.9,1830.8,5.46206827]
[1746599525404,0.51086519,1830.9,1830.7,6.91553069]
[1746599525604,5.46135006,1831.1,1830.7,6.91553069]
[1746599525816,5.46153176,1831.0,1830.6,5.46252262]
[1746599525989,11.71558875,1831.0,1830.6,5.46252262]
[1746599526185,6.25383176,1831.0,1830.7,5.46238893]
[1746599526390,0.7923,1831.0,1830.7,5.46238893]
[1746599526890,0.51086866,1830.9,1830.7,5.46238893]
[1746599527089,0.51086866,1830.9,1830.7,6.55488009]
[1746599527491,0.51086866,1830.9,1830.7,6.60949779]
[1746599527691,0.51086866,1830.8,1830.7,7.42999779]
[1746599528323,0.51086866,1830.8,1830.7,7.42999706]
[1746599529042,5.97147683,1831.3,1830.9,10.92307228]
[1746599529243,0.51086866,1831.3,1831.0,5.46149539]
[1746599529401,0.51086866,1831.2,1831.0,5.46149539]
[1746599529601,0.51086866,1831.2,1830.9,7.32965447]
[1746599530300,0.51086866,1831.1,1830.9,7.32965447]
[1746599530543,0.51086866,1831.1,1831.0,5.46149645]
[1746599530707,0.51086866,1831.1,1831.0,6.74060569]
[1746599535433,0.51086866,1831.1,1831.0,6.7952134]
[1746599535802,0.51086866,1831.1,1831.0,6.74060569]
[1746599536024,0.51086866,1831.1,1831.0,6.79521147]
[1746599536338,6.2645829,1831.5,1831.1,10.9219802]
[1746599536542,6.2645829,1831.5,1831.1,12.14209599]
[1746599536715,0.51078638,1831.4,1831.2,6.23318456]
[1746599537221,0.51078638,1831.3,1831.2,0.7723]
[1746599537710,5.97146556,1831.3,1831.1,1.22010894]
[1746599537924,5.97146556,1831.3,1830.8,6.04]
[1746599537925,11.43311502,1831.2,1830.8,17.78568715]
[1746599538134,5.9719392,1831.2,1830.9,1.77856872]
[1746599538525,0.51078638,1831.1,1830.9,1.77856872]
[1746599538728,0.51078638,1831.0,1830.9,1.77856872]
[1746599539041,0.51078638,1831.0,1830.8,11.74566046]
[1746599539243,6.26208591,1830.9,1830.6,11.50266315]
[1746599539407,0.8002,1830.9,1830.6,5.46266315]
[1746599539607,0.51078638,1830.8,1830.6,7.52646612]
[1746599540423,0.51078638,1830.7,1830.6,7.52646612]
[1746599540930,0.51078638,1830.8,1830.6,12.98912927]
[1746599541444,0.8002,1830.9,1830.6,12.98912927]
[1746599541621,0.8002,1830.9,1830.7,5.46234506]
[1746599541809,0.8002,1830.9,1830.7,23.46234506]
[1746599542140,6.27624916,1831.1,1830.7,26.01495986]
[1746599542343,6.27624916,1831.1,1830.7,26.83595986]
[1746599542542,0.51094081,1831.0,1830.7,26.83595986]
[1746599543221,0.51094081,1830.9,1830.7,26.83595986]
[1746599544143,6.27624916,1831.1,1830.7,26.83595986]
[1746599544545,0.51104553,1831.0,1830.7,26.83595986]
[1746599545147,0.51104553,1830.9,1830.7,26.83595986]
[1746599545749,6.27624916,1831.1,1830.7,26.83595986]
[1746599545949,6.27624916,1831.1,1830.7,24.28334506]
[1746599546150,0.51110506,1831.0,1830.7,24.28334506]
[1746599546762,0.51110506,1830.9,1830.7,24.28334506]
[1746599547167,6.27624916,1831.1,1830.7,24.28334506]
[1746599547669,0.51125212,1831.0,1830.7,24.28334506]
[1746599548064,0.51125212,1831.0,1830.8,5.46189832]
[1746599548240,0.51125212,1830.9,1830.8,5.51651256]
[1746599548443,0.51125212,1830.9,1830.8,5.46189832]
[1746599551136,6.28674755,1831.3,1830.9,5.46170323]
[1746599551336,7.81646326,1831.3,1830.9,5.46170323]
[1746599551531,0.5113897,1831.2,1830.9,5.46170323]
[1746599551733,0.5113897,1831.2,1830.9,5.46157378]
[1746599551943,0.5113897,1831.1,1831.0,5.46149645]
[1746599555665,0.5113897,1831.1,1831.0,5.51610743]
[1746599555875,0.5113897,1831.1,1831.0,6.69350555]
[1746599556680,11.74631022,1831.5,1831.1,5.46097286]
[1746599557239,0.51148324,1831.4,1831.1,5.46097286]
[1746599557579,0.51148324,1831.3,1831.1,5.46097286]
[1746599557763,0.51148324,1831.2,1831.1,5.46097286]
[1746599557934,0.51148324,1831.2,1831.1,6.67094467]
[1746599559157,11.74643526,1831.5,1831.1,6.67094467]
[1746599559553,17.20668044,1831.5,1831.1,6.67094467]
[1746599559874,11.74643526,1831.5,1831.1,6.67094467]
[1746599560446,5.46039873,1831.4,1831.1,5.46097286]
[1746599560657,0.51140506,1831.2,1831.1,5.46097286]
[1746599561179,0.51140506,1831.2,1831.0,5.46133221]
[1746599561586,1.34290506,1831.2,1830.8,6.04]
[1746599561770,5.46162451,1831.0,1830.8,6.04]
[1746599561950,6.29312451,1831.0,1830.7,9.13475024]
[1746599562548,0.51140506,1830.9,1830.7,9.13475024]
[1746599562860,0.51140506,1830.9,1830.7,5.46237078]
[1746599563176,0.51140506,1830.8,1830.7,5.46237078]
[1746599563377,0.51140506,1830.8,1830.6,15.17488141]
[1746599563683,0.51140506,1830.8,1830.6,17.31622475]
[1746599563847,6.29311435,1831.0,1830.6,17.31622475]
[1746599564179,6.29311435,1831.0,1830.6,15.17488141]
[1746599564483,0.5114003,1830.9,1830.6,15.17488141]
[1746599564986,0.5114003,1830.8,1830.6,15.17488141]
[1746599565405,6.29311435,1831.0,1830.6,15.17488141]
[1746599566043,0.51136817,1830.9,1830.7,18.0]
[1746599566349,0.51136817,1830.9,1830.7,23.46239119]
[1746599566549,0.51136817,1830.8,1830.7,23.46239119]
[1746599567580,0.51136817,1830.8,1830.7,18.0]
[1746599567779,0.51136817,1830.8,1830.7,23.46239143]
[1746599569295,0.51136817,1830.8,1830.7,18.0]
[1746599569593,0.51136817,1830.8,1830.6,5.46248974]
[1746599569788,0.51136817,1830.7,1830.6,5.46248974]
[1746599576983,0.51136817,1830.7,1830.6,5.46268982]
[1746599580894,0.51136817,1830.7,1830.4,11.67788983]
[1746599581087,6.72814585,1830.7,1830.3,3.67237946]
[1746599581400,6.64707675,1830.6,1830.3,3.67237946]
[1746599581785,6.21729699,1830.5,1830.3,3.67237946]
[1746599581973,6.21748671,1830.4,1830.3,3.67237946]
[1746599582565,6.72885488,1830.4,1830.3,3.67237946]
[1746599582765,7.27885488,1830.4,1830.3,3.67237946]
[1746599582995,8.55305007,1830.4,1830.3,3.67237946]
[1746599583497,13.84691346,1830.4,1830.3,3.67237946]
[1746599584707,13.84691346,1830.4,1830.3,21.67237946]
[1746599585985,14.25490341,1830.4,1830.3,21.67237946]
[1746599586506,11.96104002,1830.4,1830.3,21.67237946]
[1746599587112,11.96104002,1830.4,1830.3,18.0]
[1746599588288,5.46377715,1830.3,1829.9,5.46476362]
[1746599588503,0.50941964,1830.2,1829.9,5.46476362]
[1746599588889,5.46377715,1830.3,1829.9,5.46476362]
[1746599589713,0.50931767,1830.2,1829.9,5.46476362]
[1746599590287,10.92763524,1830.3,1829.9,5.46476362]
[1746599590480,12.61899697,1830.3,1829.9,5.46476362]
[1746599591021,0.50938143,1830.2,1829.9,5.46476362]
[1746599591315,0.50938143,1830.2,1829.9,5.51924263]
[1746599591618,9.21764884,1830.4,1830.0,6.22227956]
[1746599591823,0.5094572,1830.3,1830.0,6.22227956]
[1746599592190,5.97305086,1830.3,1830.0,6.22227956]
[1746599592390,0.5094572,1830.2,1829.9,5.46457554]
[1746599597225,5.97334116,1830.2,1829.8,23.17363218]
[1746599597527,5.97334116,1830.2,1829.8,23.17357369]
[1746599597922,5.97334116,1830.2,1829.9,5.61791136]
[1746599598128,5.46388396,1830.2,1829.9,5.61791136]
[1746599600131,5.46388396,1830.2,1829.9,0.15316255]
[1746599601636,5.46388396,1830.2,1829.9,5.61792015]
[1746599602537,5.46359366,1830.3,1829.9,5.61792015]
[1746599602968,10.92744078,1830.3,1829.9,5.61792015]
[1746599603111,0.50988059,1830.2,1829.9,5.61792015]
[1746599603435,0.50988059,1830.1,1829.9,5.6177181]
[1746599603652,6.27799611,1830.7,1830.3,6.22715379]
[1746599604222,0.51014335,1830.6,1830.3,6.22715379]
[1746599604419,5.97284463,1830.6,1830.3,6.22715379]
[1746599604623,0.51014335,1830.5,1830.2,5.46370217]
[1746599604818,0.51014335,1830.5,1830.2,7.40472953]
[1746599605309,0.51014335,1830.5,1830.3,5.46349146]
[1746599605511,0.51014335,1830.6,1830.3,5.46349146]
[1746599606042,0.51014335,1830.5,1830.3,5.46349146]
[1746599606351,0.51014335,1830.6,1830.3,5.46349146]
[1746599606639,5.97292961,1830.6,1830.2,7.4047157]
[1746599607154,5.97326684,1830.5,1830.2,1.94102736]
[1746599607353,0.51014335,1830.4,1830.2,1.94102736]
[1746599607961,5.46312349,1830.5,1830.2,7.40487931]
[1746599608169,10.92574148,1830.6,1830.2,5.46385195]
[1746599608452,0.51101084,1830.5,1830.2,5.46385195]
[1746599609242,0.51101084,1830.4,1830.2,5.46385195]
[1746599609652,5.46278626,1830.6,1830.2,5.46385195]
[1746599610225,0.5112388,1830.5,1830.2,5.46385195]
[1746599610429,0.5112388,1830.5,1830.2,7.17550489]
[1746599610626,0.5112388,1830.4,1830.2,7.17550489]
[1746599611228,5.46278626,1830.6,1830.2,7.17550489]
[1746599611427,10.92574297,1830.6,1830.2,5.46385195]
[1746599611726,5.46299393,1830.5,1830.2,5.46385195]
[1746599612241,11.74063977,1830.7,1830.3,5.46348317]
[1746599612557,5.97391599,1830.6,1830.2,5.46370772]
[1746599613063,0.51110325,1830.5,1830.2,5.46370772]
[1746599613555,5.97412408,1830.5,1830.2,5.46370772]
[1746599613755,0.51110325,1830.4,1830.2,5.46370772]
[1746599614253,5.46288003,1830.6,1830.2,5.46370772]
[1746599614460,5.46301554,1830.5,1830.2,5.46370772]
[1746599614627,5.97396999,1830.5,1830.2,5.46370772]
[1746599615078,0.51095445,1830.4,1830.2,5.46370772]
[1746599615640,10.92583044,1830.6,1830.2,5.46370772]
[1746599616063,0.51094229,1830.5,1830.2,5.46370772]
[1746599616360,0.51094229,1830.5,1830.2,1.71164111]
[1746599616658,5.46288003,1830.6,1830.3,5.46357127]
[1746599616659,0.51094229,1830.4,1830.3,5.46357127]
[1746599617460,0.51094229,1830.4,1830.2,7.17532166]
[1746599617655,0.51094229,1830.5,1830.2,7.17532166]
[1746599617861,0.51094229,1830.5,1830.2,5.46368055]
[1746599618071,0.51094229,1830.4,1830.2,5.46368055]
[1746599618662,5.46288003,1830.6,1830.2,5.46368055]
[1746599619256,0.51087759,1830.5,1830.2,5.46368055]
[1746599619962,0.51087759,1830.4,1830.2,5.46368055]
[1746599620360,5.46288003,1830.6,1830.2,5.46368055]
[1746599620561,6.63696497,1830.6,1830.2,5.46368055]
[1746599620861,0.51088422,1830.5,1830.2,5.46368055]
[1746599621237,0.51088422,1830.4,1830.2,5.46368055]
[1746599621777,12.09992535,1830.6,1830.2,5.46368055]
[1746599622273,0.51091163,1830.5,1830.2,5.46368055]
[1746599622567,0.51091163,1830.4,1830.2,5.46368055]
[1746599623364,0.806,1830.5,1830.2,5.46368055]
[1746599624175,0.51096724,1830.4,1830.2,5.46368055]
[1746599624573,6.26902902,1830.5,1830.2,5.46368055]
[1746599624776,0.806,1830.5,1830.2,5.46368055]
[1746599625443,0.51102571,1830.4,1830.2,5.46366215]
[1746599625644,0.51102571,1830.4,1830.3,5.4635852]
[1746599625858,0.51102571,1830.4,1830.3,6.2849852]
[1746599626461,5.46295571,1830.6,1830.2,6.62889837]
[1746599626791,6.28745571,1830.6,1830.2,5.46366215]
[1746599627190,0.51111861,1830.5,1830.2,5.46366215]
[1746599627482,5.97444551,1830.4,1830.1,0.8214]
[1746599627646,5.46367583,1830.3,1830.0,6.04]
[1746599628016,6.75114551,1830.4,1830.0,5.46446565]
[1746599628169,6.75114551,1830.4,1829.9,6.22941196]
[1746599628170,0.51111861,1830.2,1829.9,6.22941196]
[1746599628373,0.51111861,1830.2,1829.9,8.91314489]
[1746599628575,0.51111861,1830.2,1829.9,12.58552435]
[1746599628881,0.51111861,1830.1,1830.0,5.46448087]
[1746599629398,0.51111861,1830.1,1830.0,6.28558087]
[1746599629600,0.51111861,1830.1,1830.0,6.34021911]
[1746599629760,0.51111861,1830.1,1830.0,8.15631209]
[1746599629962,5.46315882,1830.5,1830.1,5.46408996]
[1746599630374,0.5113025,1830.4,1830.1,5.46408996]
[1746599630901,0.5113025,1830.3,1830.1,5.46408996]
[1746599631108,0.5113025,1830.3,1830.2,24.21808372]
[1746599631313,0.5113025,1830.3,1830.2,27.18630109]
[1746599633581,0.5113025,1830.3,1830.2,9.18630109]
[1746599633769,0.5113025,1830.3,1830.2,6.27271556]
[1746599634271,0.5113025,1830.3,1830.0,17.700546]
[1746599634478,0.5113025,1830.2,1830.0,17.700546]
[1746599634674,0.5113025,1830.2,1830.0,16.936346]
[1746599635092,0.5113025,1830.1,1830.0,16.936346]
[1746599637404,0.5113025,1830.1,1830.0,10.896346]
[1746599638203,0.5113025,1830.1,1830.0,5.432]
[1746599640213,0.5113025,1830.1,1829.9,5.46476691]
[1746599640803,0.5113025,1830.0,1829.9,5.51940699]
[1746599640982,0.5113025,1830.0,1829.9,7.78682356]
[1746599641313,5.46368519,1830.3,1829.9,7.78682356]
[1746599641481,5.46368519,1830.3,1829.9,5.46476691]
[1746599641683,0.5115205,1830.2,1829.9,5.46476691]
[1746599642072,0.5115205,1830.1,1829.9,5.46476691]
[1746599643378,0.5115205,1830.0,1829.9,5.46476691]
[1746599644220,6.24823,1830.4,1830.0,5.464284]
[1746599644452,6.29603012,1830.5,1830.1,5.46417427]
[1746599644733,0.51155795,1830.4,1830.3,5.46356417]
[1746599645591,0.51155795,1830.4,1830.2,6.29330764]
[1746599645795,0.51155795,1830.4,1830.2,6.34791576]
[1746599646035,0.51155795,1830.4,1830.2,7.75849694]
[1746599646233,0.51155795,1830.3,1830.2,7.75849694]
[1746599646839,5.46271575,1830.6,1830.2,13.22218301]
[1746599647147,5.46271575,1830.6,1830.2,13.16755042]
[1746599647350,0.51155175,1830.5,1830.3,5.46348537]
[1746599647532,0.51155175,1830.4,1830.3,6.8348582]
[1746599647845,0.51155175,1830.4,1830.3,6.78022569]
[1746599648137,0.51155175,1830.4,1830.3,7.60785628]
[1746599648608,0.51155175,1830.4,1830.3,9.90171967]
[1746599649504,0.51155175,1830.4,1830.3,9.84708908]
[1746599649833,5.46221816,1830.8,1830.4,5.46300431]
[1746599650034,14.69883267,1830.9,1830.5,5.46295712]
[1746599650327,16.71488058,1830.9,1830.5,5.46295712]
[1746599650506,0.51158117,1830.8,1830.5,5.46295712]
[1746599651328,0.51158117,1830.8,1830.5,10.92577542]
[1746599651522,0.51158117,1830.7,1830.4,5.46313642]
[1746599651723,0.51158117,1830.7,1830.5,5.46282658]
[1746599652035,0.51158117,1830.6,1830.5,5.46282658]
[1746599652345,0.51158117,1830.6,1830.4,6.44781043]
[1746599652511,0.51158117,1830.5,1830.4,6.44774821]
[1746599661736,0.51158117,1830.5,1830.4,0.98467401]
[1746599661934,0.51158117,1830.5,1830.3,5.46358161]
[1746599662116,6.21680334,1830.6,1830.3,5.46358161]
[1746599662445,6.21679356,1830.6,1830.2,22.36584453]
[1746599662622,6.21679356,1830.6,1830.2,6.04]
[1746599662623,5.46309901,1830.5,1830.2,6.04]
[1746599662943,6.21687055,1830.6,1830.2,11.50386113]
[1746599663243,0.51134727,1830.4,1830.2,11.50386113]
[1746599663443,0.51134727,1830.4,1830.2,5.46386113]
[1746599663619,0.51134727,1830.3,1830.2,5.46386113]
[1746599664841,0.51134727,1830.3,1830.1,10.92788566]
[1746599665040,0.7727,1830.4,1830.1,5.46391264]
[1746599665218,0.7727,1830.4,1830.1,5.46418228]
[1746599665419,0.7727,1830.4,1830.1,10.9281844]
[1746599665628,0.7727,1830.4,1830.2,5.46387936]
[1746599666111,0.7727,1830.4,1830.1,5.46402964]
[1746599666307,0.5114074,1830.3,1830.1,10.9280029]
[1746599666510,0.5114074,1830.3,1830.1,8.6142115]
[1746599666844,0.5114074,1830.3,1830.2,18.0]
[1746599667153,0.7727,1830.4,1830.2,18.0]
[1746599667638,0.7727,1830.4,1830.2,23.46385215]
[1746599668140,0.5114746,1830.3,1830.2,18.0]
[1746599670656,0.5114746,1830.3,1830.2,23.46388372]
[1746599670820,0.5114746,1830.3,1830.2,5.46388372]
[1746599682361,0.5114746,1830.3,1830.2,6.55666942]
[1746599682700,0.5114746,1830.3,1830.2,9.72916555]
[1746599682886,0.8225,1830.8,1830.5,5.46280617]
[1746599683402,0.51192917,1830.7,1830.5,10.92561234]
[1746599683760,0.51192917,1830.6,1830.5,5.46280617]
[1746599683965,0.51192917,1830.6,1830.5,8.1560894]
[1746599687996,0.8133,1831.0,1830.6,5.46247297]
[1746599688220,0.8133,1831.0,1830.7,5.46236538]
[1746599688400,0.51138692,1830.9,1830.7,5.46236538]
[1746599689034,0.51138692,1830.8,1830.7,5.46236538]
[1746599689214,0.51138692,1830.8,1830.7,6.55484921]
[1746599689617,0.51138692,1830.8,1830.7,7.32314921]
[1746599689818,0.51138692,1831.1,1830.9,5.46178642]
[1746599690222,0.51138692,1831.1,1831.0,5.46149645]
[1746599690420,3.8083,1831.3,1831.0,5.46149645]
[1746599690727,9.26890555,1831.3,1831.0,5.46149645]
[1746599690928,0.51093911,1831.2,1831.0,5.46129848]
[1746599691496,0.51093911,1831.1,1831.0,5.46129848]
[1746599692409,0.51093911,1831.1,1831.0,6.63042232]
[1746599693028,0.8083,1831.3,1831.1,5.46119684]
[1746599693224,0.51046507,1831.2,1831.1,5.46119684]
[1746599693906,0.51046507,1831.2,1831.0,6.63042232]
[1746599694250,0.51046507,1831.1,1831.0,6.63042232]
[1746599694735,0.771,1831.2,1831.0,6.63042232]
[1746599696938,0.771,1831.3,1831.0,6.63042232]
[1746599697111,0.50993652,1831.2,1831.0,6.63042232]
[1746599697297,0.771,1831.3,1831.0,6.63042232]
[1746599697928,0.50985861,1831.2,1831.0,6.63042232]
[1746599698137,0.771,1831.3,1831.0,6.63042232]
[1746599698629,6.23167115,1831.3,1831.0,1.16912384]
[1746599698934,0.50981331,1831.2,1830.9,5.46179474]
[1746599699311,6.23167115,1831.3,1830.9,10.9231509]
[1746599699736,0.50978956,1831.2,1830.9,10.9231509]
[1746599699935,6.23167115,1831.3,1830.9,10.9231509]
[1746599700134,6.23167115,1831.3,1831.0,5.46149444]
[1746599702535,6.23167115,1831.3,1831.0,6.62957069]
[1746599704206,14.64074528,1831.5,1831.0,6.62937534]
[1746599704407,9.21074528,1831.5,1831.0,6.62937534]
[1746599704612,9.21074528,1831.5,1831.1,6.28411025]
[1746599704845,9.21074528,1831.5,1831.3,5.46044857]
[1746599704846,0.7506,1831.5,1831.3,5.46044857]
[1746599705146,5.45970901,1831.6,1831.3,6.55804363]
[1746599706240,5.45970901,1831.6,1831.3,1.09759506]
[1746599706447,5.45970901,1831.6,1831.2,5.46069907]
[1746599706912,5.45970901,1831.6,1831.2,10.92139814]
[1746599707248,5.45971444,1831.6,1831.3,5.46048685]
[1746599708124,6.21016933,1831.7,1831.3,5.46048685]
[1746599708643,6.21016933,1831.7,1831.3,6.24498685]
[1746599708815,11.66984964,1831.7,1831.3,7.41555544]
[1746599709015,11.66984964,1831.7,1831.3,6.63105544]
[1746599710346,0.7506,1831.7,1831.4,5.46028383]
[1746599711025,6.21001584,1831.7,1831.4,5.46028383]
[1746599711336,0.7506,1831.7,1831.4,5.46028383]
[1746599711643,0.7506,1831.7,1831.5,0.54602838]
[1746599713824,5.45869354,1832.0,1831.6,5.45958014]
[1746599714027,6.27869354,1832.0,1831.6,5.45958014]
[1746599714559,8.57255693,1832.0,1831.6,5.45958014]
[1746599714726,8.57255693,1832.0,1831.6,6.68503379]
[1746599715859,8.57255693,1832.0,1831.6,12.14455853]
[1746599716049,8.57255693,1832.0,1831.6,6.68493272]
[1746599716363,6.27869354,1832.0,1831.6,12.14441475]
[1746599716574,6.27869354,1832.0,1831.6,6.68493272]
[1746599716863,6.27869354,1832.0,1831.7,0.66849327]
[1746599719058,0.82,1832.0,1831.7,6.12788289]
[1746599719466,6.27851807,1832.0,1831.7,6.12788289]
[1746599719676,0.82,1832.0,1831.7,0.66849327]
[1746599719831,6.26828724,1832.1,1831.7,6.12769068]
[1746599720168,6.26828724,1832.1,1831.8,6.07183759]
[1746599720461,6.26828724,1832.1,1831.8,0.61276907]
[1746599721660,11.72675529,1832.1,1831.8,0.61276907]
[1746599721863,6.26828724,1832.1,1831.8,0.61276907]
[1746599722265,6.26827963,1832.1,1831.8,0.61276907]
[1746599723537,11.72677295,1832.1,1831.7,6.28354738]
[1746599724371,6.26827963,1832.1,1831.7,6.28354738]
[1746599724566,0.51000744,1832.0,1831.7,6.28354738]
[1746599725071,0.51000744,1831.9,1831.7,6.28348484]
[1746599725371,5.45837963,1832.1,1831.7,6.28348484]
[1746599725678,5.45837963,1832.1,1831.8,5.45910822]
[1746599725872,5.45837963,1832.1,1831.7,8.54279045]
[1746599726055,0.50997975,1832.0,1831.7,14.00199015]
[1746599726376,0.50997975,1831.9,1831.7,8.54279045]
[1746599726971,0.50997975,1832.0,1831.7,14.00198539]
[1746599727179,0.50997975,1832.0,1831.8,1.40019854]
[1746599727773,0.50997975,1831.9,1831.8,1.40019854]
[1746599728140,0.50997975,1832.0,1831.8,1.40019854]
[1746599728865,0.50997975,1831.9,1831.8,1.40019854]
[1746599729494,0.50997975,1832.0,1831.8,1.40019854]
[1746599729981,0.50997975,1831.9,1831.8,1.40019854]
[1746599730143,0.50997975,1831.9,1831.8,6.85930979]
[1746599730443,0.50997975,1832.0,1831.8,6.85930979]
[1746599730640,0.50997975,1831.9,1831.8,1.40019854]
[1746599731280,0.50997975,1832.0,1831.8,6.85930901]
[1746599731579,0.50997975,1832.0,1831.9,0.34261527]
[1746599732083,5.45837963,1832.1,1831.9,0.34261527]
[1746599732256,0.51025517,1832.0,1831.9,0.34261527]
[1746599733558,0.51025517,1832.0,1831.9,1.06279109]
[1746599736389,0.51025517,1832.0,1831.9,0.34261527]
[1746599736555,0.51025517,1832.0,1831.7,6.28350325]
[1746599736890,0.51025517,1832.0,1831.8,0.33555693]
[1746599737092,0.51025517,1831.9,1831.8,0.33555693]
[1746599739079,0.51025517,1831.9,1831.8,5.79466818]
[1746599739374,0.51025517,1831.9,1831.8,7.00248475]
[1746599740184,0.51025517,1831.9,1831.8,1.5433735]
[1746599741989,0.51025517,1831.9,1831.8,7.00248475]
[1746599744564,0.51025517,1831.9,1831.8,0.33555693]
[1746599744898,5.96906842,1831.9,1831.6,16.92468955]
[1746599745075,5.96906842,1831.9,1831.8,0.33559818]
[1746599745277,5.96906842,1831.9,1831.7,0.33606818]
[1746599745490,5.96906842,1831.9,1831.8,0.33559818]
[1746599745805,0.51025517,1831.9,1831.6,10.88468955]
[1746599746096,0.51025517,1831.9,1831.8,0.3359701]
[1746599746305,0.51025517,1831.9,1831.7,0.33644011]
[1746599746599,5.45881325,1831.9,1831.8,0.3359701]
[1746599746810,5.97083486,1831.9,1831.6,10.8846953]
[1746599746989,5.97083486,1831.9,1831.8,0.33638335]
[1746599747193,5.97083486,1831.9,1831.6,10.8846953]
[1746599747401,0.51202161,1831.8,1831.7,0.33685336]
[1746599747818,0.51202161,1831.8,1831.6,13.14036071]
[1746599748020,0.51202161,1831.8,1831.7,0.33685336]
[1746599748171,6.27417266,1832.0,1831.7,0.33685336]
[1746599748373,0.51204058,1831.9,1831.6,13.14036071]
[1746599748687,0.51204058,1831.9,1831.7,0.33685336]
[1746599748890,0.51204058,1831.8,1831.7,0.33685336]
[1746599749390,0.51204058,1831.8,1831.6,13.14036071]
[1746599749600,0.51204058,1831.8,1831.7,0.33685336]
[1746599750022,0.51204058,1831.8,1831.6,13.14036071]
[1746599750311,0.51204058,1831.8,1831.7,0.33685336]
[1746599750686,0.51204058,1831.8,1831.6,5.4596953]
[1746599750903,0.51204058,1831.8,1831.7,0.33685336]
[1746599751111,5.45881415,1831.9,1831.7,0.33685336]
[1746599751286,5.45881415,1831.9,1831.6,5.4596953]
[1746599751489,5.45881415,1831.9,1831.8,0.33638335]
[1746599751795,0.8193,1831.6,1831.2,5.46074177]
[1746599752107,0.51218241,1831.5,1831.2,10.92145993]
[1746599752292,0.51218241,1831.5,1831.3,5.46056706]
[1746599752714,6.27911505,1831.6,1831.3,5.46056706]
[1746599752715,0.51218241,1831.4,1831.3,5.46056706]
[1746599753274,0.51218241,1831.4,1831.3,6.91993353]
[1746599753876,0.51218241,1831.4,1831.3,1.45936647]
[1746599754217,0.51218241,1831.4,1831.2,9.13319635]
[1746599754810,0.51218241,1831.3,1831.2,9.13319635]
[1746599755718,0.51218241,1831.3,1831.2,23.46081689]
[1746599759105,11.73906999,1831.6,1831.2,23.46081689]
[1746599759306,5.4600071,1831.5,1831.2,5.46081689]
[1746599759505,0.51071182,1831.4,1831.2,5.46081689]
[1746599759715,0.51071182,1831.4,1831.2,5.46087019]
[1746599760013,0.51071182,1831.4,1831.1,17.11435362]
[1746599760225,5.4600071,1831.5,1831.2,5.46089753]
[1746599760427,6.2792107,1831.6,1831.2,5.46089753]
[1746599760804,0.51069152,1831.5,1831.2,5.46089753]
[1746599761736,0.51069152,1831.4,1831.2,5.46089753]
[1746599762032,6.2792107,1831.6,1831.2,5.46089753]
[1746599762638,0.51059167,1831.5,1831.2,5.46089753]
[1746599762937,0.51059167,1831.4,1831.2,5.46089753]
[1746599764233,0.51059167,1831.4,1831.2,7.39769045]
[1746599764944,0.51059167,1831.5,1831.2,12.85843111]
[1746599765145,0.51059167,1831.5,1831.3,5.46059366]
[1746599765439,0.51059167,1831.5,1831.3,6.2791973]
[1746599765647,5.45952616,1831.7,1831.3,6.2791973]
[1746599766149,5.45952616,1831.7,1831.4,5.79131294]
[1746599766347,0.51053397,1831.6,1831.4,0.33100935]
[1746599766820,0.51053397,1831.5,1831.4,0.33100935]
[1746599771364,0.51053397,1831.5,1831.4,5.79131294]
[1746599773774,0.51053397,1831.5,1831.4,6.44630423]
[1746599774053,0.51053397,1831.7,1831.6,5.45970735]
[1746599774564,0.51053397,1831.7,1831.6,5.79064338]
[1746599774767,0.51053397,1831.7,1831.6,0.33093603]
[1746599776958,0.51053397,1831.7,1831.6,6.91202045]
[1746599779570,0.51053397,1831.7,1831.6,7.66262045]
[1746599784138,6.28384231,1832.0,1831.7,5.4593841]
[1746599784437,6.28384231,1832.0,1831.8,0.32834449]
[1746599785867,0.7792,1832.2,1832.0,5.45850024]
[1746599786068,0.7792,1832.2,1832.1,0.54585002]